[Event "*** Titled Tuesday Blitz"]
[Site "Chess.com"]
[Date "2019.04.02"]
[Round "4"]
[White "Walter_White_Poland"]
[Black "Dare-Dare"]
[Result "1-0"]
[WhiteElo "2266"]
[BlackElo "2135"]
[TimeControl "180+2"]
[EndTime "14:51:03 PDT"]
[Termination "Walter_White_Poland won by resignation"]

1. e4 {[%clk 0:03:01.9]} 1... e6 {[%clk 0:03:01.1]} 2. d4 {[%clk 0:03:02.1]}
2... d5 {[%clk 0:03:03]} 3. Nc3 {[%clk 0:03:03.1]} 3... Bb4 {[%clk 0:03:03.8]}
4. e5 {[%clk 0:03:03.5]} 4... c5 {[%clk 0:03:04.9]} 5. a3 {[%clk 0:03:04.6]}
5... Bxc3+ {[%clk 0:03:06.1]} 6. bxc3 {[%clk 0:03:05.4]} 6... Qa5 {[%clk
0:03:07.5]} 7. Qd2 {[%clk 0:02:42.3]} 7... Nc6 {[%clk 0:03:04]} 8. Nf3 {[%clk
0:02:40.3]} 8... Nge7 {[%clk 0:02:58.6]} 9. a4 {[%clk 0:02:40.3]} 9... cxd4
{[%clk 0:02:49.3]} 10. cxd4 {[%clk 0:02:40.2]} 10... Qxd2+ {[%clk 0:02:49.5]}
11. Bxd2 {[%clk 0:02:41.2]} 11... Bd7 {[%clk 0:02:33.1]} 12. Bc3 {[%clk
0:02:09.7]} 12... Rc8 {[%clk 0:02:29.8]} 13. Kd2 {[%clk 0:02:10]} 13... f6
{[%clk 0:02:18.7]} 14. exf6 {[%clk 0:02:08.9]} 14... gxf6 {[%clk 0:02:20.6]} 15.
Bd3 {[%clk 0:02:00]} 15... Kf7 {[%clk 0:02:15.8]} 16. Rhe1 {[%clk 0:01:53.1]}
16... Ng6 {[%clk 0:02:08]} 17. g3 {[%clk 0:01:51.9]} 17... Rc7 {[%clk
0:02:06.3]} 18. h4 {[%clk 0:01:47.4]} 18... Rhc8 {[%clk 0:02:05.1]} 19. h5
{[%clk 0:01:35.5]} 19... Nf8 {[%clk 0:02:04.2]} 20. a5 {[%clk 0:01:28.5]} 20...
a6 {[%clk 0:01:43.3]} 21. Rab1 {[%clk 0:01:28.2]} 21... Na7 {[%clk 0:01:36.9]}
22. Bb4 {[%clk 0:01:23.5]} 22... Bb5 {[%clk 0:01:33.6]} 23. Bd6 {[%clk
0:00:51.8]} 23... Rc6 {[%clk 0:01:15.3]} 24. Bxf8 {[%clk 0:00:51]} 24... Bxd3
{[%clk 0:01:08.2]} 25. Rxb7+ {[%clk 0:00:48.9]} 25... Kxf8 {[%clk 0:00:54.9]}
26. cxd3 {[%clk 0:00:49.3]} 26... Rc2+ {[%clk 0:00:46.5]} 27. Ke3 {[%clk
0:00:48.5]} 27... R8c7 {[%clk 0:00:37.1]} 28. Rxc7 {[%clk 0:00:48.4]} 28... Rxc7
{[%clk 0:00:39]} 29. Rb1 {[%clk 0:00:19.8]} 29... Nb5 {[%clk 0:00:39.8]} 30. Nd2
{[%clk 0:00:16.7]} 30... Kf7 {[%clk 0:00:38]} 31. Nb3 {[%clk 0:00:16.9]} 31...
e5 {[%clk 0:00:39]} 32. dxe5 {[%clk 0:00:15.2]} 32... fxe5 {[%clk 0:00:39.7]}
33. f4 {[%clk 0:00:14.2]} 33... d4+ {[%clk 0:00:37.1]} 34. Kf3 {[%clk
0:00:14.8]} 34... Ke6 {[%clk 0:00:36]} 35. Re1 {[%clk 0:00:13.4]} 35... Kd6
{[%clk 0:00:31.7]} 36. Rxe5 {[%clk 0:00:13.5]} 36... Rc3 {[%clk 0:00:30.8]} 37.
Ke4 {[%clk 0:00:11.3]} 37... Rxb3 {[%clk 0:00:30.7]} 38. Rg5 {[%clk 0:00:08.8]}
38... Rb1 {[%clk 0:00:29.7]} 39. Rg7 {[%clk 0:00:08.6]} 39... Re1+ {[%clk
0:00:29.7]} 40. Kf3 {[%clk 0:00:09.6]} 40... Re7 {[%clk 0:00:30.1]} 41. Rxe7
{[%clk 0:00:08.3]} 41... Kxe7 {[%clk 0:00:30.5]} 42. Ke4 {[%clk 0:00:09.4]}
42... Kd6 {[%clk 0:00:30.8]} 43. g4 {[%clk 0:00:10.3]} 43... Ke6 {[%clk
0:00:30.1]} 44. g5 {[%clk 0:00:10]} 44... Kf7 {[%clk 0:00:22.8]} 45. f5 {[%clk
0:00:10.5]} 45... Ke7 {[%clk 0:00:23.3]} 46. h6 {[%clk 0:00:11]} 46... Kf7
{[%clk 0:00:23.1]} 47. Kd5 {[%clk 0:00:08.2]} 47... Ke7 {[%clk 0:00:18.8]} 48.
g6 {[%clk 0:00:08.5]} 48... hxg6 {[%clk 0:00:19.2]} 49. h7 {[%clk 0:00:09]}
49... Kf6 {[%clk 0:00:21.1]} 50. h8=Q+ {[%clk 0:00:09.7]} 50... Kxf5 {[%clk
0:00:22.3]} 51. Qf8+ {[%clk 0:00:10.4]} 51... Kg5 {[%clk 0:00:23.1]} 52. Ke4
{[%clk 0:00:10.8]} 52... Kh5 {[%clk 0:00:22.4]} 53. Qh8+ {[%clk 0:00:11.1]}
53... Kg5 {[%clk 0:00:23.3]} 54. Qe5+ {[%clk 0:00:11.2]} 54... Kh6 {[%clk
0:00:24.2]} 55. Qh2+ {[%clk 0:00:11.2]} 55... Kg7 {[%clk 0:00:24.7]} 56. Qb8
{[%clk 0:00:11.7]} 56... Kf6 {[%clk 0:00:25.1]} 57. Qb6+ {[%clk 0:00:12.2]}
57... Kf7 {[%clk 0:00:25.2]} 58. Qxa6 {[%clk 0:00:12.7]} 58... Nc3+ {[%clk
0:00:25.8]} 59. Kxd4 {[%clk 0:00:13.1]} 59... Ne2+ {[%clk 0:00:26.1]} 60. Ke3
{[%clk 0:00:13.8]} 1-0

[Event "*** Titled Tuesday Blitz"]
[Site "Chess.com"]
[Date "2019.04.02"]
[Round "4"]
[White "albano87"]
[Black "advantageLucy"]
[Result "1/2-1/2"]
[WhiteElo "2310"]
[BlackElo "2492"]
[TimeControl "180+2"]
[EndTime "14:51:05 PDT"]
[Termination "Game drawn - insufficient material"]

1. e4 {[%clk 0:02:21.5]} 1... e6 {[%clk 0:03:00.7]} 2. d4 {[%clk 0:02:21.7]}
2... d5 {[%clk 0:03:01.8]} 3. Nc3 {[%clk 0:02:22.6]} 3... Bb4 {[%clk 0:02:59.1]}
4. Ne2 {[%clk 0:02:23.1]} 4... dxe4 {[%clk 0:02:58]} 5. a3 {[%clk 0:02:23.6]}
5... Bxc3+ {[%clk 0:02:59.2]} 6. Nxc3 {[%clk 0:02:24.3]} 6... Nf6 {[%clk
0:02:51.3]} 7. Bg5 {[%clk 0:02:18.2]} 7... Nc6 {[%clk 0:02:51.8]} 8. Bb5 {[%clk
0:02:14.7]} 8... h6 {[%clk 0:02:37.7]} 9. Bxf6 {[%clk 0:02:12.6]} 9... Qxf6
{[%clk 0:02:39.6]} 10. Nxe4 {[%clk 0:02:13.8]} 10... Qg6 {[%clk 0:02:29.8]} 11.
Qf3 {[%clk 0:02:04.3]} 11... O-O {[%clk 0:02:28.8]} 12. Bxc6 {[%clk 0:01:58.4]}
12... bxc6 {[%clk 0:02:30.7]} 13. O-O {[%clk 0:02:00.3]} 13... Rb8 {[%clk
0:02:20.7]} 14. b4 {[%clk 0:01:56.9]} 14... Rb5 {[%clk 0:02:05.3]} 15. Nc5
{[%clk 0:01:49.1]} 15... Qxc2 {[%clk 0:02:00.1]} 16. Qxc6 {[%clk 0:01:49.1]}
16... Rb8 {[%clk 0:01:54.1]} 17. Qxc7 {[%clk 0:01:39.6]} 17... Ra8 {[%clk
0:01:49]} 18. Nxe6 {[%clk 0:01:22]} 18... Qxc7 {[%clk 0:01:41]} 19. Nxc7 {[%clk
0:01:18.7]} 19... Rb8 {[%clk 0:01:41.2]} 20. d5 {[%clk 0:01:20]} 20... Rd8
{[%clk 0:01:41.2]} 21. Rfe1 {[%clk 0:01:19.6]} 21... Bb7 {[%clk 0:01:34.2]} 22.
Re7 {[%clk 0:01:18.9]} 22... Kf8 {[%clk 0:01:34]} 23. Rae1 {[%clk 0:01:18.2]}
23... a5 {[%clk 0:01:28.5]} 24. bxa5 {[%clk 0:01:13.1]} 24... Bxd5 {[%clk
0:01:29.7]} 25. Nxd5 {[%clk 0:01:11.1]} 25... Rxd5 {[%clk 0:01:31.6]} 26. a6
{[%clk 0:01:12.5]} 26... Ra5 {[%clk 0:01:31.2]} 27. a7 {[%clk 0:01:12.3]} 27...
Ra8 {[%clk 0:01:32.5]} 28. g3 {[%clk 0:01:13.3]} 28... R5xa7 {[%clk 0:01:31.9]}
29. Rxa7 {[%clk 0:01:13.3]} 29... Rxa7 {[%clk 0:01:33.8]} 30. Re3 {[%clk
0:01:15.2]} 30... h5 {[%clk 0:01:31.4]} 31. Rb3 {[%clk 0:01:16.8]} 31... g6
{[%clk 0:01:32.5]} 32. Kg2 {[%clk 0:01:18.3]} 32... Ke7 {[%clk 0:01:33.4]} 33.
Kf3 {[%clk 0:01:19.9]} 33... Kd6 {[%clk 0:01:34.9]} 34. Kf4 {[%clk 0:01:20.9]}
34... Ra4+ {[%clk 0:01:34.6]} 35. Kg5 {[%clk 0:01:20.7]} 35... Ra5+ {[%clk
0:01:32.5]} 36. Kh6 {[%clk 0:01:19.2]} 36... Rf5 {[%clk 0:00:47.6]} 37. f4
{[%clk 0:01:14]} 37... h4 {[%clk 0:00:48.5]} 38. a4 {[%clk 0:01:11.9]} 38... Kc6
{[%clk 0:00:48.1]} 39. Rb5 {[%clk 0:01:09.7]} 39... hxg3 {[%clk 0:00:44.7]} 40.
hxg3 {[%clk 0:01:08.9]} 40... Rf6 {[%clk 0:00:42.6]} 41. Kg7 {[%clk 0:01:09.3]}
41... Rd6 {[%clk 0:00:40.6]} 42. Kxf7 {[%clk 0:01:09.7]} 42... Rd3 {[%clk
0:00:41.4]} 43. Kxg6 {[%clk 0:01:03.5]} 43... Rxg3+ {[%clk 0:00:42.1]} 44. Rg5
{[%clk 0:01:03.7]} 44... Rf3 {[%clk 0:00:39.5]} 45. f5 {[%clk 0:01:01.7]} 45...
Kd6 {[%clk 0:00:37.6]} 46. a5 {[%clk 0:00:59.8]} 46... Ra3 {[%clk 0:00:37.5]}
47. f6 {[%clk 0:01:00.7]} 47... Ke6 {[%clk 0:00:38.3]} 48. f7 {[%clk 0:00:53.7]}
48... Rf3 {[%clk 0:00:38.9]} 49. a6 {[%clk 0:00:54.3]} 49... Rf6+ {[%clk
0:00:34.4]} 50. Kh7 {[%clk 0:00:44.2]} 50... Rxf7+ {[%clk 0:00:32.6]} 51. Rg7
{[%clk 0:00:45.7]} 51... Rf1 {[%clk 0:00:29.4]} 52. Rg8 {[%clk 0:00:38]} 52...
Ra1 {[%clk 0:00:28.7]} 53. Ra8 {[%clk 0:00:39]} 53... Kd7 {[%clk 0:00:28.6]} 54.
a7 {[%clk 0:00:40]} 54... Kc7 {[%clk 0:00:29.8]} 55. Kg7 {[%clk 0:00:36.6]}
55... Kb7 {[%clk 0:00:30.9]} 56. Rb8+ {[%clk 0:00:37.2]} 56... Kxa7 {[%clk
0:00:31.6]} 57. Rb2 {[%clk 0:00:38.9]} 57... Ra6 {[%clk 0:00:31.4]} 58. Kf7
{[%clk 0:00:39.6]} 58... Rb6 {[%clk 0:00:32.7]} 59. Rxb6 {[%clk 0:00:40.6]}
59... Kxb6 {[%clk 0:00:34]} 1/2-1/2

[Event "*** Titled Tuesday Blitz"]
[Site "Chess.com"]
[Date "2019.04.02"]
[Round "4"]
[White "MathiasWomacka"]
[Black "GCamachoMartinez"]
[Result "1/2-1/2"]
[WhiteElo "2262"]
[BlackElo "2356"]
[TimeControl "180+2"]
[EndTime "14:51:13 PDT"]
[Termination "Game drawn by agreement"]

1. e4 {[%clk 0:03:01.9]} 1... e5 {[%clk 0:02:58.8]} 2. Nf3 {[%clk 0:03:02.7]}
2... Nf6 {[%clk 0:02:58.4]} 3. Nxe5 {[%clk 0:03:02.8]} 3... d6 {[%clk
0:02:59.4]} 4. Nf3 {[%clk 0:03:04.3]} 4... Nxe4 {[%clk 0:03:00.4]} 5. d4 {[%clk
0:03:05.9]} 5... d5 {[%clk 0:03:00.7]} 6. Bd3 {[%clk 0:03:07.2]} 6... Be7 {[%clk
0:03:01.8]} 7. O-O {[%clk 0:03:07.4]} 7... Nc6 {[%clk 0:03:03.3]} 8. c4 {[%clk
0:03:08.1]} 8... Nb4 {[%clk 0:03:03.9]} 9. Be2 {[%clk 0:03:09.1]} 9... O-O
{[%clk 0:03:02.1]} 10. Nc3 {[%clk 0:03:09.7]} 10... Bf5 {[%clk 0:03:02.2]} 11.
a3 {[%clk 0:02:58.7]} 11... Nxc3 {[%clk 0:03:02.4]} 12. bxc3 {[%clk 0:03:00.6]}
12... Nc6 {[%clk 0:03:02.8]} 13. Bf4 {[%clk 0:02:46.6]} 13... dxc4 {[%clk
0:02:58.1]} 14. Bxc4 {[%clk 0:02:46.9]} 14... Bd6 {[%clk 0:03:00]} 15. Bg3
{[%clk 0:02:35.5]} 15... Bxg3 {[%clk 0:02:57.5]} 16. hxg3 {[%clk 0:02:37.4]}
16... Na5 {[%clk 0:02:37.9]} 17. Ba2 {[%clk 0:02:35.9]} 17... c5 {[%clk
0:02:31.5]} 18. Re1 {[%clk 0:02:30.2]} 18... cxd4 {[%clk 0:02:29.2]} 19. Nxd4
{[%clk 0:02:20.8]} 19... Bd7 {[%clk 0:02:22]} 20. Qf3 {[%clk 0:02:19.7]} 20...
Nc6 {[%clk 0:02:19.1]} 21. Rad1 {[%clk 0:02:09.4]} 21... Qf6 {[%clk 0:01:53.8]}
22. Qxf6 {[%clk 0:02:03.5]} 22... gxf6 {[%clk 0:01:55.2]} 23. Nb5 {[%clk
0:01:53.7]} 23... Rad8 {[%clk 0:01:54]} 24. Nd6 {[%clk 0:01:51.6]} 24... Bc8
{[%clk 0:01:26.4]} 25. Nxc8 {[%clk 0:01:36.1]} 25... Rxd1 {[%clk 0:01:25.7]} 26.
Rxd1 {[%clk 0:01:35.6]} 26... Rxc8 {[%clk 0:01:27.2]} 27. Rd7 {[%clk 0:01:36.3]}
27... Nd8 {[%clk 0:01:21.2]} 28. Bd5 {[%clk 0:01:31.3]} 28... Kf8 {[%clk
0:01:10.4]} 29. Bxb7 {[%clk 0:01:28]} 29... Nxb7 {[%clk 0:01:09.5]} 30. Rxb7
{[%clk 0:01:28.1]} 30... Rxc3 {[%clk 0:01:09.8]} 31. Rxa7 {[%clk 0:01:29]} 31...
Rc1+ {[%clk 0:01:10.7]} 32. Kh2 {[%clk 0:01:29.4]} 32... Rc2 {[%clk 0:01:12.3]}
33. f3 {[%clk 0:01:24.5]} 33... Kg7 {[%clk 0:01:11.1]} 34. g4 {[%clk 0:01:23.2]}
34... Kg6 {[%clk 0:01:03.5]} 35. Kg3 {[%clk 0:01:19.4]} 35... h6 {[%clk
0:00:59.7]} 36. a4 {[%clk 0:01:05.8]} 36... Ra2 {[%clk 0:01:00.3]} 37. a5 {[%clk
0:01:02.1]} 37... Kg7 {[%clk 0:00:57.8]} 38. a6 {[%clk 0:00:58.8]} 38... Kg6
{[%clk 0:00:42]} 39. Kf4 {[%clk 0:00:53]} 39... Rxg2 {[%clk 0:00:38.6]} 40. Rb7
{[%clk 0:00:53.5]} 40... Ra2 {[%clk 0:00:38.4]} 41. a7 {[%clk 0:00:54.6]} 41...
Ra4+ {[%clk 0:00:39]} 42. Ke3 {[%clk 0:00:55]} 42... f5 {[%clk 0:00:38.3]} 43.
gxf5+ {[%clk 0:00:41.5]} 43... Kxf5 {[%clk 0:00:40.2]} 44. Rxf7+ {[%clk
0:00:41.1]} 44... Kg6 {[%clk 0:00:41.7]} 45. Rb7 {[%clk 0:00:40.8]} 45... h5
{[%clk 0:00:41]} 46. Kf2 {[%clk 0:00:18.5]} 46... h4 {[%clk 0:00:33.4]} 47. Kg2
{[%clk 0:00:19]} 47... Ra3 {[%clk 0:00:32.5]} 48. Kh2 {[%clk 0:00:10.3]} 48...
Kh6 {[%clk 0:00:26.5]} 49. f4 {[%clk 0:00:09]} 49... Kg6 {[%clk 0:00:25.1]} 50.
Kg2 {[%clk 0:00:03.5]} 50... Kf5 {[%clk 0:00:26.1]} 51. Rf7+ {[%clk 0:00:03.4]}
51... Kg4 {[%clk 0:00:26.6]} 52. Rg7+ {[%clk 0:00:04.1]} 52... Kxf4 {[%clk
0:00:27.7]} 53. Rf7+ {[%clk 0:00:05.1]} 53... Kg5 {[%clk 0:00:28.3]} 54. Rb7
{[%clk 0:00:04.8]} 1/2-1/2

[Event "*** Titled Tuesday Blitz"]
[Site "Chess.com"]
[Date "2019.04.02"]
[Round "4"]
[White "Andrew-FB00"]
[Black "zurzan"]
[Result "1-0"]
[WhiteElo "1855"]
[BlackElo "2038"]
[TimeControl "180+2"]
[EndTime "14:51:20 PDT"]
[Termination "Andrew-FB00 won by resignation"]

1. e4 {[%clk 0:03:01.9]} 1... d6 {[%clk 0:03:01.9]} 2. d4 {[%clk 0:03:02.1]}
2... Nf6 {[%clk 0:03:02.8]} 3. Nc3 {[%clk 0:03:01.9]} 3... Nbd7 {[%clk
0:03:03.7]} 4. Nf3 {[%clk 0:03:02.4]} 4... e5 {[%clk 0:03:04.4]} 5. dxe5 {[%clk
0:03:02.1]} 5... dxe5 {[%clk 0:03:05]} 6. Bg5 {[%clk 0:03:01.4]} 6... Be7 {[%clk
0:03:05.5]} 7. Bc4 {[%clk 0:03:00.4]} 7... c6 {[%clk 0:03:03.7]} 8. O-O {[%clk
0:02:59.7]} 8... h6 {[%clk 0:03:04.1]} 9. Bxf6 {[%clk 0:02:59]} 9... Bxf6 {[%clk
0:03:03.5]} 10. Re1 {[%clk 0:02:55.5]} 10... O-O {[%clk 0:03:03.9]} 11. Bb3
{[%clk 0:02:54.4]} 11... Qc7 {[%clk 0:03:03.5]} 12. Qe2 {[%clk 0:02:53.6]} 12...
Nc5 {[%clk 0:02:59.9]} 13. Rad1 {[%clk 0:02:53.1]} 13... Nxb3 {[%clk 0:03:00]}
14. axb3 {[%clk 0:02:53.4]} 14... Bg4 {[%clk 0:02:59.9]} 15. h3 {[%clk
0:02:54.4]} 15... Bh5 {[%clk 0:02:59.8]} 16. g4 {[%clk 0:02:55.3]} 16... Bg6
{[%clk 0:02:59.6]} 17. Rd2 {[%clk 0:02:44.8]} 17... Rad8 {[%clk 0:02:59.2]} 18.
Red1 {[%clk 0:02:44.7]} 18... Rxd2 {[%clk 0:02:59.8]} 19. Rxd2 {[%clk
0:02:37.9]} 19... Rd8 {[%clk 0:03:00.2]} 20. Rxd8+ {[%clk 0:02:31.8]} 20... Qxd8
{[%clk 0:03:00.8]} 21. Qd3 {[%clk 0:02:32.4]} 21... Qa5 {[%clk 0:02:55.8]} 22.
Qd1 {[%clk 0:02:16.5]} 22... Qc5 {[%clk 0:02:52.7]} 23. Qd7 {[%clk 0:02:07.8]}
23... Qb4 {[%clk 0:02:28.8]} 24. Qe8+ {[%clk 0:02:07.1]} 24... Kh7 {[%clk
0:02:29.2]} 25. Nxe5 {[%clk 0:02:08]} 25... Bxe4 {[%clk 0:02:16.6]} 26. Nxf7
{[%clk 0:01:51.2]} 26... Bxc2 {[%clk 0:02:05.5]} 27. Qe3 {[%clk 0:01:16.7]}
27... Qe7 {[%clk 0:01:54.6]} 28. Qxe7 {[%clk 0:01:11.8]} 28... Bxe7 {[%clk
0:01:55.8]} 29. Ne5 {[%clk 0:01:05.7]} 29... Bxb3 {[%clk 0:01:55]} 30. f4 {[%clk
0:00:59.7]} 30... Bf6 {[%clk 0:01:49]} 31. Nd3 {[%clk 0:00:51.6]} 31... Bd4+
{[%clk 0:01:42.9]} 32. Kg2 {[%clk 0:00:49.6]} 32... c5 {[%clk 0:01:44.8]} 33.
Nb5 {[%clk 0:00:35.9]} 33... Bd5+ {[%clk 0:01:44.6]} 34. Kg3 {[%clk 0:00:34.4]}
34... Bc4 {[%clk 0:01:42.3]} 35. Nxd4 {[%clk 0:00:27.4]} 35... cxd4 {[%clk
0:01:44.2]} 36. Nf2 {[%clk 0:00:18.3]} 36... a5 {[%clk 0:01:40.3]} 37. Ne4
{[%clk 0:00:18.5]} 37... b5 {[%clk 0:01:40.3]} 38. Kf2 {[%clk 0:00:19.3]} 38...
Kg6 {[%clk 0:01:32.5]} 39. Nd2 {[%clk 0:00:19.1]} 39... Bd5 {[%clk 0:01:29.7]}
40. Ke2 {[%clk 0:00:18.8]} 40... Bc4+ {[%clk 0:01:25.1]} 41. Kf3 {[%clk
0:00:17.1]} 41... Kf6 {[%clk 0:01:23.2]} 42. Ke4 {[%clk 0:00:17.6]} 42... d3
{[%clk 0:01:22.9]} 43. b3 {[%clk 0:00:18.3]} 43... Bf7 {[%clk 0:01:02]} 44. Kxd3
{[%clk 0:00:18]} 44... Ke7 {[%clk 0:00:58.9]} 45. Kd4 {[%clk 0:00:17.4]} 45...
Kd6 {[%clk 0:00:57.8]} 46. Ne4+ {[%clk 0:00:17.5]} 46... Kc6 {[%clk 0:00:55.4]}
47. Nd2 {[%clk 0:00:18.3]} 47... g6 {[%clk 0:00:52.6]} 48. h4 {[%clk 0:00:17.5]}
48... a4 {[%clk 0:00:53]} 49. bxa4 {[%clk 0:00:17.9]} 49... bxa4 {[%clk
0:00:53.9]} 50. f5 {[%clk 0:00:14.9]} 50... g5 {[%clk 0:00:53.2]} 51. hxg5
{[%clk 0:00:14.9]} 51... hxg5 {[%clk 0:00:54.2]} 52. Nf3 {[%clk 0:00:14.4]}
52... a3 {[%clk 0:00:54.4]} 53. Kc3 {[%clk 0:00:15]} 53... Bg8 {[%clk
0:00:31.8]} 54. Nxg5 {[%clk 0:00:15.3]} 54... Kd6 {[%clk 0:00:32.1]} 55. Nf3
{[%clk 0:00:13.5]} 55... Kd5 {[%clk 0:00:29.2]} 56. g5 {[%clk 0:00:12.6]} 56...
Ke4 {[%clk 0:00:29.8]} 57. f6 {[%clk 0:00:08.8]} 57... Kxf3 {[%clk 0:00:29.3]}
58. g6 {[%clk 0:00:09]} 58... Kf4 {[%clk 0:00:25.5]} 59. f7 {[%clk 0:00:09.7]}
59... Bxf7 {[%clk 0:00:25.4]} 60. gxf7 {[%clk 0:00:10.8]} 60... Ke5 {[%clk
0:00:26.6]} 61. f8=Q {[%clk 0:00:10.9]} 1-0

[Event "*** Titled Tuesday Blitz"]
[Site "Chess.com"]
[Date "2019.04.02"]
[Round "4"]
[White "BlueWizzard"]
[Black "beatles_22"]
[Result "0-1"]
[WhiteElo "2709"]
[BlackElo "2644"]
[TimeControl "180+2"]
[EndTime "14:51:25 PDT"]
[Termination "beatles_22 won by resignation"]

1. e4 {[%clk 0:03:01.9]} 1... e5 {[%clk 0:03:00.5]} 2. Nf3 {[%clk 0:03:02.2]}
2... Nc6 {[%clk 0:03:02]} 3. Bb5 {[%clk 0:03:02]} 3... a6 {[%clk 0:03:03.3]} 4.
Ba4 {[%clk 0:03:02.7]} 4... Nf6 {[%clk 0:03:04]} 5. Qe2 {[%clk 0:03:04.3]} 5...
b5 {[%clk 0:02:57]} 6. Bb3 {[%clk 0:03:03.5]} 6... Bc5 {[%clk 0:02:48.6]} 7. a4
{[%clk 0:03:04]} 7... Rb8 {[%clk 0:02:47.1]} 8. d3 {[%clk 0:03:01.2]} 8... O-O
{[%clk 0:02:44.1]} 9. axb5 {[%clk 0:02:57.8]} 9... axb5 {[%clk 0:02:46]} 10. Bg5
{[%clk 0:02:54.8]} 10... h6 {[%clk 0:02:46.7]} 11. Bh4 {[%clk 0:02:55.5]} 11...
Be7 {[%clk 0:02:46.5]} 12. O-O {[%clk 0:02:50.5]} 12... d6 {[%clk 0:02:47.1]}
13. h3 {[%clk 0:02:47.1]} 13... Nh5 {[%clk 0:02:16.5]} 14. Bg3 {[%clk
0:02:38.8]} 14... Nxg3 {[%clk 0:02:13.7]} 15. fxg3 {[%clk 0:02:39.6]} 15... Be6
{[%clk 0:02:11]} 16. Nc3 {[%clk 0:02:38.4]} 16... Bxb3 {[%clk 0:02:07.7]} 17.
cxb3 {[%clk 0:02:39.3]} 17... Nd4 {[%clk 0:02:02.4]} 18. Nxd4 {[%clk 0:02:27.6]}
18... exd4 {[%clk 0:02:04.3]} 19. Nd5 {[%clk 0:02:29]} 19... c6 {[%clk
0:02:05.3]} 20. Nf4 {[%clk 0:02:27]} 20... Bf6 {[%clk 0:01:53.8]} 21. Ra6 {[%clk
0:02:23.7]} 21... Qd7 {[%clk 0:01:46.4]} 22. Rc1 {[%clk 0:02:05.6]} 22... Rfc8
{[%clk 0:01:46.5]} 23. Qc2 {[%clk 0:02:01]} 23... c5 {[%clk 0:01:29]} 24. Rca1
{[%clk 0:02:00]} 24... Be5 {[%clk 0:01:26.2]} 25. Qd2 {[%clk 0:01:50.6]} 25...
c4 {[%clk 0:01:22.9]} 26. Ra7 {[%clk 0:01:47.9]} 26... Rb7 {[%clk 0:01:20.6]}
27. Rxb7 {[%clk 0:01:47.7]} 27... Qxb7 {[%clk 0:01:22.5]} 28. bxc4 {[%clk
0:01:27.5]} 28... bxc4 {[%clk 0:01:23.3]} 29. dxc4 {[%clk 0:01:29.1]} 29... Qxe4
{[%clk 0:01:17.8]} 30. Re1 {[%clk 0:01:26.1]} 30... Qb7 {[%clk 0:01:15.5]} 31.
Rc1 {[%clk 0:01:21.3]} 31... Qb3 {[%clk 0:01:12.4]} 32. Nd3 {[%clk 0:01:10.8]}
32... Bxg3 {[%clk 0:00:54.3]} 33. Qc2 {[%clk 0:00:47.4]} 33... Qb7 {[%clk
0:00:48.4]} 34. b4 {[%clk 0:00:47.3]} 34... Bh4 {[%clk 0:00:48.8]} 35. c5 {[%clk
0:00:40.7]} 35... dxc5 {[%clk 0:00:46.9]} 36. bxc5 {[%clk 0:00:41.6]} 36... Bg5
{[%clk 0:00:47.9]} 37. Rb1 {[%clk 0:00:40.8]} 37... Be3+ {[%clk 0:00:48.5]} 38.
Kh1 {[%clk 0:00:40.8]} 38... Qe4 {[%clk 0:00:49.7]} 39. Qc4 {[%clk 0:00:38.4]}
39... Qe6 {[%clk 0:00:30.1]} 40. Qb5 {[%clk 0:00:37.6]} 40... Qc6 {[%clk
0:00:29.2]} 41. Qxc6 {[%clk 0:00:36.6]} 41... Rxc6 {[%clk 0:00:31.1]} 42. Rb6
{[%clk 0:00:37.5]} 42... Rc8 {[%clk 0:00:28.3]} 43. g3 {[%clk 0:00:37.8]} 43...
Kf8 {[%clk 0:00:29.5]} 44. Kg2 {[%clk 0:00:38.3]} 44... Ke7 {[%clk 0:00:30.9]}
45. Rb7+ {[%clk 0:00:38.9]} 45... Ke6 {[%clk 0:00:30.8]} 46. Kf3 {[%clk
0:00:40.3]} 46... Kd5 {[%clk 0:00:28.5]} 47. Rxf7 {[%clk 0:00:36.3]} 47... Kc4
{[%clk 0:00:29.9]} 48. Ne5+ {[%clk 0:00:37.1]} 48... Kxc5 {[%clk 0:00:30.8]} 49.
Rxg7 {[%clk 0:00:36.8]} 49... Kd5 {[%clk 0:00:32.1]} 50. Nd3 {[%clk 0:00:35.8]}
50... Rc3 {[%clk 0:00:30.4]} 51. Ke2 {[%clk 0:00:37]} 51... Rc2+ {[%clk
0:00:30.7]} 52. Kf3 {[%clk 0:00:38.3]} 52... Rc3 {[%clk 0:00:29.3]} 53. Ke2
{[%clk 0:00:35.9]} 53... Rc2+ {[%clk 0:00:27.9]} 54. Kf3 {[%clk 0:00:37]} 54...
Rc3 {[%clk 0:00:29.3]} 55. Nf4+ {[%clk 0:00:35.1]} 55... Bxf4+ {[%clk
0:00:28.4]} 56. Kxf4 {[%clk 0:00:37]} 56... d3 {[%clk 0:00:23.4]} 57. Rh7 {[%clk
0:00:36.6]} 57... Rc6 {[%clk 0:00:23.6]} 58. Ke3 {[%clk 0:00:37.2]} 58... Kc4
{[%clk 0:00:22.8]} 59. Re7 {[%clk 0:00:37.2]} 59... Kc3 {[%clk 0:00:23.3]} 60.
g4 {[%clk 0:00:35.2]} 60... d2 {[%clk 0:00:23.8]} 61. Rd7 {[%clk 0:00:36]} 61...
Re6+ {[%clk 0:00:25.3]} 62. Kf4 {[%clk 0:00:37]} 62... Kc2 {[%clk 0:00:26.8]}
63. Kf5 {[%clk 0:00:37.1]} 63... Re3 {[%clk 0:00:26.5]} 64. Rxd2+ {[%clk
0:00:36.6]} 64... Kxd2 {[%clk 0:00:27.4]} 65. h4 {[%clk 0:00:38.1]} 65... Rh3
{[%clk 0:00:25.5]} 66. h5 {[%clk 0:00:34.7]} 66... Ke3 {[%clk 0:00:26.8]} 67. g5
{[%clk 0:00:22.2]} 67... Rxh5 {[%clk 0:00:27]} 0-1